bitfinex-derivatives/quotes_BNBF0:USTF0_20250715
["timestamp","ask_amount","ask_price","bid_price","bid_amount"]
[1752561597765,0.98655519,680.96,680.22,0.9860351]
[1752561598567,0.98655519,680.95,680.22,0.9860351]
[1752561599061,0.98655519,680.94,680.23,0.9860351]
[1752561599363,0.98655519,680.94,680.2,0.25566804]
[1752561599364,0.98655519,680.94,680.24,0.9860351]
[1752561599571,0.98655519,680.95,680.24,0.9860351]
[1752561600162,0.98655519,680.99,680.28,0.9860351]
[1752561601164,0.98655519,680.99,680.27,0.9860351]
[1752561601363,0.98655519,680.99,680.28,0.9860351]
[1752561602371,0.98655519,681.02,680.25,0.9860351]
[1752561603169,0.98655519,681.03,680.25,0.9860351]
[1752561603374,0.98655519,681.02,680.25,0.9860351]
[1752561604274,0.98655519,681.02,680.26,0.9860351]
[1752561606279,0.98655519,681.02,680.2,0.25566804]
[1752561606280,0.98655519,681.11,680.2,1.24170314]
[1752561606475,0.98655519,681.12,680.2,0.25566804]
[1752561609082,0.98655519,681.11,680.2,1.24170314]
[1752561609280,0.98655519,681.11,680.2,0.25566804]
[1752561609989,0.98613466,681.11,680.2,0.25566804]
[1752561610177,0.98613466,681.12,680.2,0.25566804]
[1752561612187,0.98613466,681.13,680.2,0.25566804]
[1752561612386,0.98613466,681.12,680.2,0.25566804]
[1752561612584,0.98613466,681.14,680.2,0.25566804]
[1752561613088,0.98613466,681.15,680.2,0.25566804]
[1752561613586,0.98613466,681.16,680.2,0.25566804]
[1752561613989,0.98613466,681.15,680.2,1.2433952]
[1752561614290,0.98613466,681.16,680.2,0.25566804]
[1752561615085,0.98613466,681.15,680.2,0.25566804]
[1752561615283,0.98613466,681.07,680.25,0.98772716]
[1752561615789,0.98613466,681.06,680.25,0.98772716]
[1752561617092,0.98613466,681.08,680.24,0.98772716]
[1752561618594,0.98613466,681.07,680.24,0.98772716]
[1752561618796,0.98613466,681.07,680.25,0.98772716]
[1752561619094,0.98613466,681.06,680.25,0.98772716]
[1752561619297,0.98613466,681.08,680.27,0.98772716]
[1752561619893,0.98613466,681.03,680.3,0.98772716]
[1752561620298,0.98613466,681.03,680.29,0.98772716]
[1752561620508,0.98613466,681.03,680.3,0.98772716]
[1752561621201,0.98613466,681.04,680.3,0.98772716]
[1752561622201,0.98613466,681.04,680.29,0.98772716]
[1752561623097,0.98613466,681.08,680.32,0.98772716]
[1752561623302,0.98613466,681.08,680.33,0.98772716]
[1752561624099,0.98613466,681.09,680.32,0.98772716]
[1752561625902,0.98613466,681.06,680.34,0.98772716]
[1752561628204,0.98613466,681.06,680.33,0.98772716]
[1752561628600,0.98613466,681.06,680.34,0.98772716]
[1752561628806,0.98613466,681.04,680.34,0.98772716]
[1752561630306,0.98613466,681.08,680.37,0.98772716]
[1752561630601,0.98613466,681.12,680.41,0.98772716]
[1752561631902,0.98613466,681.13,680.4,0.98772716]
[1752561632305,0.98613466,681.15,680.39,0.98772716]
[1752561633307,0.98613466,681.15,680.38,0.98772716]
[1752561634607,0.98613466,681.14,680.39,0.98772716]
[1752561634906,0.98613466,681.16,680.38,0.98772716]
[1752561635109,0.98613466,681.17,680.37,0.98772716]
[1752561636209,0.98613466,681.18,680.37,0.98772716]
[1752561637212,0.98613466,681.11,680.41,0.98772716]
[1752561638005,0.98613466,681.23,680.52,0.98772716]
[1752561639920,0.98613466,681.24,680.51,0.98772716]
[1752561640311,0.98613466,681.24,680.52,0.98772716]
[1752561640914,0.98613466,681.24,680.53,0.98772716]
[1752561641213,0.98613466,681.25,680.52,0.98772716]
[1752561641409,0.98613466,681.24,680.54,0.98772716]
[1752561641812,0.25548973,681.51,680.54,0.98772716]
[1752561641813,0.98613466,681.23,680.54,0.98772716]
[1752561642413,0.98613466,681.23,680.55,0.98772716]
[1752561643109,0.98613466,681.23,680.54,0.98772716]
[1752561643317,0.98613466,681.23,680.55,0.98772716]
[1752561644110,0.98613466,681.23,680.54,0.98772716]
[1752561645214,0.98613466,681.24,680.54,0.98772716]
[1752561646210,0.98613466,681.24,680.53,0.98772716]
[1752561646710,0.98613466,681.24,680.54,0.98772716]
[1752561648114,0.98613466,681.24,680.53,0.98772716]
[1752561648410,0.98613466,681.24,680.54,0.98772716]
[1752561648614,0.98613466,681.25,680.53,0.98772716]
[1752561650010,0.98613466,681.24,680.54,0.98772716]
[1752561650309,0.98613466,681.24,680.53,0.98772716]
[1752561651113,0.98613466,681.25,680.53,0.98772716]
[1752561651510,0.98613466,681.24,680.53,0.98772716]
[1752561651717,0.98613466,681.24,680.54,0.98772716]
[1752561652015,0.98471187,681.24,680.54,0.98565445]
[1752561653011,0.98471187,681.26,680.52,0.98565445]
[1752561655510,0.98471187,681.26,680.51,0.98565445]
[1752561655714,0.98471187,681.27,680.51,0.98565445]
[1752561656417,0.98471187,681.28,680.51,0.98565445]
[1752561656917,0.98471187,681.27,680.51,0.98565445]
[1752561657818,0.25545034,681.59,680.5,0.98565445]
[1752561657819,0.98471187,681.29,680.5,0.98565445]
[1752561658816,0.98471187,681.22,680.44,0.98565445]
[1752561659115,0.98471187,681.48,680.27,0.98565445]
[1752561659316,0.98471187,681.47,680.27,0.98565445]
[1752561659615,0.98471187,681.5,680.29,0.98565445]
[1752561659814,1.106878,681.49,680.29,0.98565445]
[1752561660017,1.106878,681.49,680.3,0.98565445]
[1752561660218,0.98471187,681.46,680.32,0.98565445]
[1752561660418,1.106878,681.45,680.32,0.98565445]
[1752561661719,2.09158987,681.45,680.33,0.98565445]
[1752561661919,1.106878,681.44,680.33,0.98565445]
[1752561662214,1.1070121,681.43,680.33,0.98565445]
[1752561662415,1.1070121,681.42,680.33,0.98565445]
[1752561662615,1.1070121,681.41,680.33,0.98565445]
[1752561662917,1.1070121,681.4,680.33,0.98565445]
[1752561663114,0.98471187,681.35,680.24,0.98565445]
[1752561664214,0.98471187,681.34,680.24,0.98565445]
[1752561664420,0.98471187,681.35,680.26,0.98565445]
[1752561664822,0.98471187,681.35,680.27,0.98565445]
[1752561665322,0.98471187,681.34,680.27,0.98565445]
[1752561665830,0.98471187,681.34,680.31,0.98565445]
[1752561666321,0.98471187,681.33,680.33,0.98565445]
[1752561666721,0.98471187,681.32,680.34,0.98565445]
[1752561666921,0.98471187,681.19,680.42,0.98565445]
[1752561667322,0.98471187,681.18,680.43,0.98565445]
[1752561668325,0.98471187,681.18,680.44,0.98565445]
[1752561668723,0.98471187,681.19,680.45,0.98565445]
[1752561669125,0.98471187,681.21,680.47,0.98565445]
[1752561669326,0.98471187,681.2,680.47,0.98565445]
[1752561669724,0.98471187,681.22,680.49,0.98565445]
[1752561670026,0.98471187,681.23,680.5,0.98565445]
[1752561670627,0.98471187,681.25,680.48,0.98565445]
[1752561671227,0.98471187,681.25,680.49,0.98565445]
[1752561672026,0.98471187,681.26,680.5,0.98565445]
[1752561672625,0.98471187,681.25,680.5,0.98565445]
[1752561673026,0.98471187,681.25,680.2,0.25566804]
[1752561673027,0.98471187,681.21,680.53,0.98565445]
[1752561673430,0.98471187,681.22,680.53,0.98565445]
[1752561674230,0.98471187,681.21,680.53,0.98565445]
[1752561675228,0.98471187,681.21,680.54,0.98565445]
[1752561675729,0.98471187,681.22,680.53,0.98565445]
[1752561675932,0.98471187,681.23,680.54,0.98565445]
[1752561677233,0.98471187,681.22,680.55,0.98565445]
[1752561678433,0.98654127,681.22,680.55,0.98723851]
[1752561679032,0.98654127,681.23,680.55,0.98723851]
[1752561679331,0.98654127,681.27,680.59,0.98723851]
[1752561679631,0.98654127,681.27,680.6,0.98723851]
[1752561680931,0.98654127,681.26,680.61,0.98723851]
[1752561681337,0.98654127,681.27,680.63,0.98723851]
[1752561681534,0.98654127,681.33,680.69,0.98723851]
[1752561682234,0.98654127,681.34,680.7,0.98723851]
[1752561683136,0.98654127,681.35,680.7,0.98723851]
[1752561683530,0.98654127,681.38,680.73,0.98723851]
[1752561683834,0.98654127,681.38,680.72,0.98723851]
[1752561684134,0.98654127,681.38,680.73,0.98723851]
[1752561684333,0.98654127,681.37,680.73,0.98723851]
[1752561684530,0.98654127,681.37,680.72,0.98723851]
[1752561685035,0.98654127,681.37,680.73,0.98723851]
[1752561685334,0.98654127,681.44,680.79,0.98723851]
[1752561685532,0.98654127,681.45,680.79,0.98723851]
[1752561685731,0.98654127,681.44,680.79,0.98723851]
[1752561686330,0.98654127,681.44,680.78,0.98723851]
[1752561686535,0.98654127,681.43,680.79,0.98723851]
[1752561686833,0.98654127,681.44,680.79,0.98723851]
[1752561687134,0.98654127,681.43,680.79,0.98723851]
[1752561687432,0.98654127,681.46,680.81,0.98723851]
[1752561688231,1.9731103,681.73,680.54,1.9720702]
[1752561688436,1.1078321,681.72,680.2,0.25566804]
[1752561688640,1.1078321,681.71,680.2,0.25566804]
[1752561688838,1.1078321,681.7,680.2,0.25566804]
[1752561689039,1.1078321,681.69,680.2,0.25566804]
[1752561689335,1.1078321,681.68,680.2,0.25566804]
[1752561689536,1.1078321,681.67,680.2,0.25566804]
[1752561689841,1.1078321,681.66,680.2,0.25566804]
[1752561690038,1.1078321,681.65,680.2,0.25566804]
[1752561690340,1.1078321,681.64,680.2,0.25566804]
[1752561690535,1.1078321,681.63,680.2,0.25566804]
[1752561690738,1.1078321,681.62,680.2,0.25566804]
[1752561690943,0.98587625,681.5,680.7,0.98595067]
[1752561691136,0.98587625,681.49,680.7,0.98595067]
[1752561691938,0.98587625,681.5,680.7,0.98595067]
[1752561693744,0.98587625,681.5,680.69,0.98595067]
[1752561694141,0.98587625,681.5,680.7,0.98595067]
[1752561694343,0.98587625,681.5,680.69,0.98595067]
[1752561696542,0.98587625,681.51,680.69,0.98595067]
[1752561698048,0.98587625,681.5,680.69,0.98595067]
[1752561698647,0.98587625,681.47,680.71,0.98595067]
[1752561699344,0.98587625,681.48,680.7,0.98595067]
[1752561701347,1.3145016,681.64,680.7,0.98595067]
[1752561701348,0.98587625,681.49,680.7,0.98595067]
[1752561701846,0.98587625,681.48,680.7,0.98595067]
[1752561702051,0.98587625,681.51,680.73,0.98595067]
[1752561702546,0.98587625,681.52,680.73,0.98595067]
[1752561702748,0.98587625,681.51,680.74,0.98595067]
[1752561702953,0.98587625,681.54,680.76,0.98595067]
[1752561703254,0.98587625,681.54,680.75,0.98595067]
[1752561703453,0.98587625,681.54,680.78,0.98595067]
[1752561703653,0.98587625,681.55,680.79,0.98595067]
[1752561703954,0.98587625,681.55,680.78,0.98595067]
[1752561705254,0.98587625,681.55,680.77,0.98595067]
[1752561705778,0.98587625,681.56,680.77,0.98595067]
[1752561706051,0.98587625,681.58,680.78,0.98595067]
[1752561706254,0.98587625,681.6,680.77,0.98595067]
[1752561706454,0.98587625,681.63,680.79,0.98595067]
[1752561706753,0.98587625,681.63,680.8,0.98595067]
[1752561706951,0.98587625,681.64,680.81,0.98595067]
[1752561707151,0.98587625,681.67,680.84,0.98595067]
[1752561707451,0.98587625,681.68,680.82,0.98595067]
[1752561708155,0.98587625,681.68,680.84,0.98595067]
[1752561708355,0.98587625,681.7,680.83,0.98595067]
[1752561708553,0.98587625,681.73,680.86,0.98595067]
[1752561709254,0.98587625,681.74,680.85,0.98595067]
[1752561710256,0.98587625,681.74,680.84,0.98595067]
[1752561711254,0.98587625,681.75,680.83,0.98595067]
[1752561712262,0.98587625,681.75,680.82,0.98595067]
[1752561713361,0.98587625,681.75,680.66,1.3146008]
[1752561713362,0.98587625,681.75,680.81,0.98595067]
[1752561713657,0.98587625,681.76,680.81,0.98595067]
[1752561715360,0.98587625,681.76,680.8,0.98595067]
[1752561715859,0.98587625,681.76,680.5,1.9719013]
[1752561715860,0.98587625,681.74,680.81,0.98595067]
[1752561716158,0.98587625,681.78,680.79,0.98595067]
[1752561717264,0.98587625,681.78,680.78,0.98595067]
[1752561717563,0.98587625,681.77,680.78,0.98595067]
[1752561718260,0.98587625,681.78,680.78,0.98595067]
[1752561722268,0.98587625,681.78,680.77,0.98595067]
[1752561723367,0.98587625,681.78,680.78,0.98595067]
[1752561723669,0.98587625,681.79,680.77,0.98595067]
[1752561723869,1.1054074,681.78,680.77,0.98595067]
[1752561724169,1.1054074,681.78,680.44,1.9719013]
[1752561724170,0.98587625,681.77,680.75,0.98595067]
[1752561724365,0.98587625,681.76,680.76,0.98595067]
[1752561726069,0.98587625,681.73,680.78,0.98595067]
[1752561726364,0.98587625,681.73,680.79,0.98595067]
[1752561727272,0.98587625,681.73,680.8,0.98595067]
[1752561727868,0.98587625,681.72,680.8,0.98595067]
[1752561728368,0.98587625,681.72,680.65,1.3146008]
[1752561728369,0.98587625,681.72,680.81,0.98595067]
[1752561728868,0.98587625,681.7,680.82,0.98595067]
[1752561729273,0.98587625,681.69,680.83,0.98595067]
[1752561729569,0.98587625,681.7,680.82,0.98595067]
[1752561730372,0.98587625,681.7,680.83,0.98595067]
[1752561731270,0.98587625,681.7,680.84,0.98595067]
[1752561732176,0.98587625,681.7,680.83,0.98595067]
[1752561732470,0.25539691,681.87,680.2,0.25566804]
[1752561732471,0.98587625,681.72,680.87,0.98595067]
[1752561733273,0.98587625,681.72,680.88,0.98595067]
[1752561733570,0.98587625,681.7,680.89,0.98595067]
[1752561734275,0.98587625,681.69,680.9,0.98595067]
[1752561735276,0.98587625,681.69,680.91,0.98595067]
[1752561736476,0.98587625,681.69,680.92,0.98595067]
[1752561737273,0.98587625,681.69,680.2,0.25566804]
[1752561737274,0.98587625,681.68,680.93,0.98595067]
[1752561738272,0.98587625,681.67,680.94,0.98595067]
[1752561738576,0.98587625,681.67,680.95,0.98595067]
[1752561738776,0.98587625,681.69,680.93,0.98595067]
[1752561739278,0.98587625,681.68,680.94,0.98595067]
[1752561739478,0.98587625,681.67,680.95,0.98595067]
[1752561740278,0.98587625,681.66,680.96,0.98595067]
[1752561740583,0.98587625,681.64,680.94,0.98595067]
[1752561740777,0.98587625,681.82,680.82,0.98595067]
[1752561741278,0.98587625,681.81,680.83,0.98595067]
[1752561742275,0.98587625,681.81,680.84,0.98595067]
[1752561743274,0.98587625,681.8,680.85,0.98595067]
[1752561746279,0.98587625,681.8,680.86,0.98595067]
[1752561750587,0.98587625,681.71,680.92,0.98595067]
[1752561751285,0.98587625,681.71,680.93,0.98595067]
[1752561752382,0.98587625,681.7,680.93,0.98595067]
[1752561753087,0.98587625,681.65,680.97,0.98595067]
[1752561754182,0.98587625,681.64,680.97,0.98595067]
[1752561754784,0.98587625,681.63,680.98,0.98595067]
[1752561755289,0.98587625,681.65,680.97,0.98595067]
[1752561755890,0.98587625,681.64,680.97,0.98595067]
[1752561756489,0.98587625,681.64,680.98,0.98595067]
[1752561757288,0.98587625,681.63,680.99,0.98595067]
[1752561757689,0.98587625,681.62,680.99,0.98595067]
[1752561758292,0.98587625,681.61,681.0,0.98595067]
[1752561758492,0.98587625,681.62,681.0,0.98595067]
[1752561759292,0.98587625,681.61,681.01,0.98595067]
[1752561760393,0.98587625,681.6,681.02,0.98595067]
[1752561761289,0.98587625,681.59,681.03,0.98595067]
[1752561761988,0.98587625,681.58,681.03,0.98595067]
[1752561762290,0.98587625,681.57,681.04,0.98595067]
[1752561763093,0.98587625,681.56,681.05,0.98595067]
[1752561763393,0.98587625,681.57,681.04,0.98595067]
[1752561764190,0.98587625,681.56,681.05,0.98595067]
[1752561764996,0.98587625,681.54,681.06,0.98595067]
[1752561765191,0.98587625,681.54,680.77,1.9719013]
[1752561765192,0.98587625,681.53,681.04,0.98595067]
[1752561765397,0.98587625,681.49,681.02,0.98595067]
[1752561766495,0.98587625,681.48,681.03,0.98595067]
[1752561768202,0.98587625,681.48,681.02,0.98595067]
[1752561768505,0.98587625,681.48,681.03,0.98595067]
[1752561769103,0.98587625,681.48,681.02,0.98595067]
[1752561769900,1.3145016,681.63,680.88,1.3146008]
[1752561770103,0.98950506,681.49,681.03,0.98965782]
[1752561770303,0.98950506,681.49,681.02,0.98965782]
[1752561773004,0.98950506,681.47,681.03,0.98965782]
[1752561773804,0.98950506,681.47,681.04,0.98965782]
[1752561774000,0.98950506,681.48,681.03,0.98965782]
[1752561775003,0.98950506,681.49,681.02,0.98965782]
[1752561776002,0.98950506,681.53,681.06,0.98965782]
[1752561776206,0.98950506,681.54,681.05,0.98965782]
[1752561776802,0.98950506,681.56,681.04,0.98965782]
[1752561777106,0.98950506,681.55,681.04,0.98965782]
[1752561777608,0.98950506,681.78,680.9,0.98965782]
[1752561778102,0.98950506,681.77,680.89,0.98965782]
[1752561778704,0.98950506,681.8,680.88,0.98965782]
[1752561780104,0.98950506,681.81,680.88,0.98965782]
[1752561780306,0.98950506,681.79,680.89,0.98965782]
[1752561781105,0.98950506,681.76,680.92,0.98965782]
[1752561782809,0.98950506,681.7,680.95,0.98965782]
[1752561783008,0.98950506,681.71,680.96,0.98965782]
[1752561783412,0.98950506,681.69,680.97,0.98965782]
[1752561785108,0.98950506,681.68,680.95,0.98965782]
[1752561785308,0.98950506,681.66,680.93,0.98965782]
[1752561785612,0.98950506,681.59,680.98,0.98965782]
[1752561785812,0.98950506,681.6,680.99,0.98965782]
[1752561786013,0.98950506,681.58,681.0,0.98965782]
[1752561786309,0.98950506,681.66,681.07,0.98965782]
[1752561786811,0.98950506,681.62,681.09,0.98965782]
[1752561787312,0.98950506,681.72,681.18,0.98965782]
[1752561787607,0.98950506,681.69,681.19,0.98965782]
[1752561788109,0.98950506,681.7,681.18,0.98965782]
[1752561788313,0.98950506,681.71,681.18,0.98965782]
[1752561789413,0.98950506,681.72,681.17,0.98965782]
[1752561789607,0.98950506,681.68,681.13,0.98965782]
[1752561790110,0.98950506,681.67,681.14,0.98965782]
[1752561790314,0.98950506,681.68,681.13,0.98965782]
[1752561791015,0.98950506,681.65,681.15,0.98965782]
[1752561791215,0.98950506,681.66,681.14,0.98965782]
[1752561792414,0.98950506,681.67,681.14,0.98965782]
[1752561793112,0.98950506,681.66,681.14,0.98965782]
[1752561795421,0.98950506,681.65,681.15,0.98965782]
[1752561796217,0.98950506,681.65,681.14,0.98965782]
[1752561797517,0.98950506,681.65,681.15,0.98965782]
[1752561798220,0.98950506,681.63,681.11,0.98965782]
[1752561798421,0.98950506,681.63,681.1,0.98965782]
[1752561798621,0.98950506,681.59,681.05,0.98965782]
[1752561798821,0.98950506,681.6,681.07,0.98965782]
[1752561799424,0.98950506,681.61,681.07,0.98965782]
[1752561800919,0.98950506,681.84,681.07,0.98965782]
[1752561801118,0.98950506,681.84,681.06,0.98965782]
[1752561801317,0.98950506,681.85,681.06,0.98965782]
[1752561802325,1.1109361,681.84,681.06,0.98965782]
[1752561802619,0.98950506,681.85,681.06,0.98965782]
[1752561803123,0.98950506,681.86,681.06,0.98965782]
[1752561803324,0.98950506,681.9,681.1,0.98965782]
[1752561804124,0.98950506,681.91,681.09,0.98965782]
[1752561804927,0.98950506,681.9,681.09,0.98965782]
[1752561805126,0.98950506,681.91,681.09,0.98965782]
[1752561806422,0.98950506,681.91,681.08,0.98965782]
[1752561807227,0.98950506,681.89,681.1,0.98965782]
[1752561808126,0.98950506,681.89,681.09,0.98965782]
[1752561809022,0.98950506,681.87,681.12,0.98965782]
[1752561810229,0.98950506,681.87,681.11,0.98965782]
[1752561810527,0.98950506,681.82,681.15,0.98965782]
[1752561810723,0.98950506,681.8,681.16,0.98965782]
[1752561810925,0.98950506,681.8,680.58,0.2553229]
[1752561810926,0.98950506,681.79,681.17,0.98965782]
[1752561811225,0.98950506,681.86,681.12,0.98965782]
[1752561811430,0.98950506,681.81,681.07,0.98965782]
[1752561813131,0.98950506,681.82,681.07,0.98965782]
[1752561813328,0.25529293,682.02,680.58,0.2553229]
[1752561813329,0.98950506,681.83,681.09,0.98965782]
[1752561814033,0.25529293,682.02,681.1,0.98965782]
[1752561814034,0.98950506,681.84,681.1,0.98965782]
[1752561814234,0.98950506,681.84,681.09,0.98965782]
[1752561820139,0.98950506,681.85,681.09,0.98965782]
[1752561821038,0.98950506,681.77,681.14,0.98965782]
[1752561821339,0.98950506,681.79,681.12,0.98965782]
[1752561822534,0.98950506,681.78,681.12,0.98965782]
[1752561822839,0.98950506,681.77,681.1,0.98965782]
[1752561823132,0.98950506,681.77,681.11,0.98965782]
[1752561828145,0.98950506,681.76,681.11,0.98965782]
[1752561829243,0.98950506,681.76,681.12,0.98965782]
[1752561830046,0.98950506,681.76,681.11,0.98965782]
[1752561830342,0.98950506,681.76,681.12,0.98965782]
[1752561830547,0.98950506,681.75,681.12,0.98965782]
[1752561831149,0.98950506,681.73,681.13,0.98965782]
[1752561832050,0.98950506,681.73,681.0,1.3146008]
[1752561832247,0.98706759,681.73,681.13,0.98639274]
[1752561832550,1.9717525,681.99,681.0,1.3146008]
[1752561832751,1.1099649,681.98,680.86,1.9719013]
[1752561832952,1.1099649,681.97,680.58,0.2553229]
[1752561833251,1.1099649,681.96,680.58,0.2553229]
[1752561833552,1.1099649,681.95,680.58,0.2553229]
[1752561833748,1.1099649,681.94,680.58,0.2553229]
[1752561833948,1.1099649,681.93,680.58,0.2553229]
[1752561834154,1.1099649,681.92,680.58,0.2553229]
[1752561834453,1.1099649,681.91,680.58,0.2553229]
[1752561834652,1.3163454,681.86,681.01,1.3155208]
[1752561834849,0.98725911,681.72,681.14,0.98664061]
[1752561835353,0.98725911,681.85,681.06,0.98664061]
[1752561836349,0.98725911,681.84,681.06,0.98664061]
[1752561837449,0.98725911,681.84,681.07,0.98664061]
[1752561837753,0.25529293,682.02,680.85,1.3155208]
[1752561837954,0.98757434,681.84,681.07,0.98695552]
[1752561839856,0.98757434,681.74,680.97,0.98695552]
[1752561841352,0.98757434,681.65,681.03,0.98695552]
[1752561841556,0.98757434,681.62,681.06,0.98695552]
[1752561841958,0.98757434,681.61,681.05,0.98695552]
[1752561843156,0.98757434,681.61,681.06,0.98695552]
[1752561843855,0.98757434,681.69,681.0,0.98695552]
[1752561844160,0.98757434,681.68,681.01,0.98695552]
[1752561844455,0.98757434,681.69,681.01,0.98695552]
[1752561845259,0.98757434,681.68,681.01,0.98695552]
[1752561850164,0.98757434,681.69,681.0,0.98695552]
[1752561850766,0.98757434,681.77,680.94,0.98695552]
[1752561851171,0.98757434,681.78,680.94,0.98695552]
[1752561851572,0.98757434,681.78,680.7,1.3155208]
[1752561851573,0.98757434,681.79,680.95,0.98695552]
[1752561853774,0.98757434,681.78,680.96,0.98695552]
[1752561854178,0.98757434,681.8,680.98,0.98695552]
[1752561854375,0.98757434,681.82,681.01,0.98695552]
[1752561854976,0.98757434,681.83,681.01,0.98695552]
[1752561855882,0.98757434,681.82,681.0,0.98695552]
[1752561856282,0.98757434,681.83,681.0,0.98695552]
[1752561857484,0.98757434,681.82,681.01,0.98695552]
[1752561857884,0.98757434,681.83,681.03,0.98695552]
[1752561860584,0.98757434,681.74,681.09,0.98695552]
[1752561862387,0.98757434,681.7,681.12,0.98695552]
[1752561863685,0.98757434,681.69,681.12,0.98695552]
[1752561865487,0.98757434,681.68,681.13,0.98695552]
[1752561865691,0.98757434,681.67,681.14,0.98695552]
[1752561866188,0.98757434,681.65,681.15,0.98695552]
[1752561867091,0.98757434,681.71,681.11,0.98695552]
[1752561867387,0.98757434,681.71,681.12,0.98695552]
[1752561867591,0.98757434,681.7,681.12,0.98695552]
[1752561870093,0.98757434,681.71,681.12,0.98695552]
[1752561870292,0.98757434,681.7,681.12,0.98695552]
[1752561871890,0.98757434,681.71,681.13,0.98695552]
[1752561872493,0.98757434,681.72,681.14,0.98695552]
[1752561874294,0.98757434,681.71,681.14,0.98695552]
[1752561875592,0.98757434,681.72,681.14,0.98695552]
[1752561876393,0.98757434,681.71,681.14,0.98695552]
[1752561876894,0.98757434,681.7,681.15,0.98695552]
[1752561877193,0.98757434,681.69,681.15,0.98695552]
[1752561878398,0.98757434,681.69,681.16,0.98695552]
[1752561879999,0.98757434,681.68,681.16,0.98695552]
[1752561880599,0.98757434,681.68,681.17,0.98695552]
[1752561882200,0.98757434,681.67,681.17,0.98695552]
[1752561883801,0.98757434,681.69,681.16,0.98695552]
[1752561884604,0.98849396,681.69,681.16,0.98802741]
[1752561887005,0.98849396,681.69,680.58,0.2553229]
[1752561887006,0.98849396,681.67,681.17,0.98802741]
[1752561891810,0.98849396,681.68,681.17,0.98802741]
[1752561892409,0.98849396,681.67,681.16,0.98802741]
[1752561893310,0.98849396,681.68,681.16,0.98802741]
[1752561893714,0.98849396,681.66,681.17,0.98802741]
[1752561895921,0.98849396,681.66,681.18,0.98802741]
[1752561897418,0.98849396,681.66,681.17,0.98802741]
[1752561897617,0.98849396,681.68,681.16,0.98802741]
[1752561897817,0.98849396,681.69,681.17,0.98802741]
[1752561898716,0.98849396,681.68,681.16,0.98802741]
[1752561899314,0.98849396,681.7,681.15,0.98802741]
[1752561900422,0.98849396,681.69,681.15,0.98802741]
[1752561900620,0.98849396,681.67,681.13,0.98802741]
[1752561901122,0.98849396,681.64,681.1,0.98802741]
[1752561901721,0.98849396,681.63,681.1,0.98802741]
[1752561902022,0.98849396,681.62,681.09,0.98802741]
[1752561902322,0.98849396,681.63,681.1,0.98802741]
[1752561903021,0.98849396,681.63,681.11,0.98802741]
[1752561903322,0.98849396,681.49,680.98,0.98802741]
[1752561903521,0.98849396,681.51,680.96,0.98802741]
[1752561904022,0.98849396,681.52,680.96,0.98802741]
[1752561904222,0.98849396,681.52,680.95,0.98802741]
[1752561905022,0.98849396,681.64,681.07,0.98802741]
[1752561905622,0.98849396,681.64,680.76,1.9732812]
[1752561905623,0.98849396,681.64,681.06,0.98802741]
[1752561906823,0.98849396,681.64,681.07,0.98802741]
[1752561907222,0.98849396,681.64,681.06,0.98802741]
[1752561907625,0.98849396,681.67,681.05,0.98802741]
[1752561907824,0.98849396,681.66,681.05,0.98802741]
[1752561908120,0.98840602,681.66,681.05,0.9879808]
[1752561912725,0.98840602,681.67,681.04,0.9879808]
[1752561914422,0.98840602,681.68,681.04,0.9879808]
[1752561915025,0.98840602,681.67,681.04,0.9879808]
[1752561915725,0.98840602,681.65,681.06,0.9879808]
[1752561916122,0.98840602,681.74,681.0,0.9879808]
[1752561920136,0.98840602,681.75,681.0,0.9879808]
[1752561920334,0.98840602,681.74,681.0,0.9879808]
[1752561920532,0.98840602,681.74,680.99,0.9879808]
[1752561921831,0.98840602,681.64,680.9,0.9879808]
[1752561922239,0.98840602,681.65,680.89,0.9879808]
[1752561923038,0.98840602,681.65,680.9,0.9879808]
[1752561923437,0.98840602,681.67,680.91,0.9879808]
[1752561924932,0.98840602,681.67,680.9,0.9879808]
[1752561925434,1.3163454,681.89,680.9,0.9879808]
[1752561925435,0.98840602,681.68,680.9,0.9879808]
[1752561926041,0.98840602,681.62,680.94,0.9879808]
[1752561926541,0.98840602,681.6,680.95,0.9879808]
[1752561927138,0.25529293,682.02,680.58,0.2553229]
[1752561927139,0.98840602,681.59,680.96,0.9879808]
[1752561927343,0.98840602,681.6,680.95,0.9879808]
[1752561927544,0.98840602,681.59,680.96,0.9879808]
[1752561928440,0.98840602,681.59,680.95,0.9879808]
[1752561928646,0.98840602,681.59,680.96,0.9879808]
[1752561928943,0.98840602,681.6,680.95,0.9879808]
[1752561929540,0.98840602,681.57,680.97,0.9879808]
[1752561930343,0.98840602,681.56,680.97,0.9879808]
[1752561931244,0.98840602,681.57,680.98,0.9879808]
[1752561932842,0.98840602,681.62,681.02,0.9879808]
[1752561934148,0.98840602,681.62,681.03,0.9879808]
[1752561934948,0.98840602,681.6,681.04,0.9879808]
[1752561936045,0.98840602,681.6,681.03,0.9879808]
[1752561936745,0.98840602,681.61,681.03,0.9879808]
[1752561939150,0.98840602,681.62,681.03,0.9879808]
[1752561940445,0.98840602,681.63,681.04,0.9879808]
[1752561941445,0.98840602,681.63,680.58,0.2553229]
[1752561941446,0.98840602,681.64,681.06,0.9879808]
[1752561945254,0.98840602,681.63,681.06,0.9879808]
[1752561945756,0.98840602,681.63,681.07,0.9879808]